[Event "GrandPrix_30.05"]
[Site "Chess.com"]
[Date "2020.05.30"]
[Round "6"]
[White "Sanan_Sjugirov"]
[Black "DaVinci81"]
[Result "1-0"]
[WhiteElo "2713"]
[BlackElo "2559"]
[TimeControl "600+2"]
[EndTime "10:57:05 PDT"]
[Termination "Sanan_Sjugirov won by resignation"]

1. e4 {[%clk 0:10:01.9]} 1... e5 {[%clk 0:10:00.2]} 2. Nf3 {[%clk 0:10:02.5]}
2... Nc6 {[%clk 0:10:01]} 3. Bb5 {[%clk 0:10:02.5]} 3... a6 {[%clk 0:10:02]} 4.
Ba4 {[%clk 0:10:03.2]} 4... Nf6 {[%clk 0:10:03.1]} 5. O-O {[%clk 0:10:03.1]}
5... Be7 {[%clk 0:10:04]} 6. Re1 {[%clk 0:10:00.9]} 6... b5 {[%clk 0:10:04.8]}
7. Bb3 {[%clk 0:10:02]} 7... d6 {[%clk 0:10:05.5]} 8. c3 {[%clk 0:10:02.2]} 8...
O-O {[%clk 0:10:06.2]} 9. h3 {[%clk 0:10:03.3]} 9... Nb8 {[%clk 0:10:07]} 10. d4
{[%clk 0:10:01.2]} 10... Nbd7 {[%clk 0:10:08.1]} 11. Nbd2 {[%clk 0:10:01.8]}
11... Bb7 {[%clk 0:10:09.1]} 12. Bc2 {[%clk 0:10:02.1]} 12... c5 {[%clk
0:10:10]} 13. d5 {[%clk 0:09:53.5]} 13... c4 {[%clk 0:10:08.7]} 14. Nf1 {[%clk
0:09:40.7]} 14... Qc7 {[%clk 0:10:03.5]} 15. Ng3 {[%clk 0:09:41.1]} 15... g6
{[%clk 0:10:04.7]} 16. Bd2 {[%clk 0:09:04.1]} 16... Rfb8 {[%clk 0:09:44]} 17.
Nh2 {[%clk 0:08:58.1]} 17... Bc8 {[%clk 0:09:16.9]} 18. Rf1 {[%clk 0:08:55.1]}
18... a5 {[%clk 0:09:04.4]} 19. a3 {[%clk 0:08:55.7]} 19... Qd8 {[%clk
0:08:57.3]} 20. Kh1 {[%clk 0:08:46.1]} 20... Rb7 {[%clk 0:08:49.3]} 21. f4
{[%clk 0:08:38.1]} 21... exf4 {[%clk 0:08:47.9]} 22. Bxf4 {[%clk 0:08:40]} 22...
Ne5 {[%clk 0:08:38.4]} 23. Nf3 {[%clk 0:08:40.5]} 23... Nfd7 {[%clk 0:07:12.2]}
24. Nd4 {[%clk 0:08:09.1]} 24... Ra6 {[%clk 0:06:19.8]} 25. Qd2 {[%clk
0:07:40.4]} 25... Nc5 {[%clk 0:05:59.2]} 26. Bh6 {[%clk 0:05:55.1]} 26... Bh4
{[%clk 0:04:54.4]} 27. Nge2 {[%clk 0:05:41.2]} 27... Qe8 {[%clk 0:04:41.6]} 28.
Rf4 {[%clk 0:05:08.1]} 28... Bd8 {[%clk 0:04:37.5]} 29. Raf1 {[%clk 0:05:02.7]}
29... Ncd3 {[%clk 0:04:28.6]} 30. Bxd3 {[%clk 0:04:52.1]} 30... Nxd3 {[%clk
0:04:10.9]} 31. R4f3 {[%clk 0:04:52.6]} 31... Ne5 {[%clk 0:04:11.8]} 32. Rg3
{[%clk 0:04:26]} 32... b4 {[%clk 0:03:57.7]} 33. axb4 {[%clk 0:02:30.8]} 33...
axb4 {[%clk 0:03:56.8]} 34. cxb4 {[%clk 0:02:32.7]} 34... Nd3 {[%clk 0:03:46.5]}
35. Nc6 {[%clk 0:02:26.1]} 35... Bh4 {[%clk 0:03:17.5]} 36. Qc3 {[%clk
0:01:53.8]} 36... f5 {[%clk 0:02:50.4]} 37. Qxc4 {[%clk 0:01:35.4]} 37... Bxg3
{[%clk 0:02:17.4]} 38. Nxg3 {[%clk 0:01:37.3]} 38... Nxb4 {[%clk 0:02:04.5]} 39.
Nxb4 {[%clk 0:01:33.8]} 39... Ra4 {[%clk 0:02:05]} 40. Bd2 {[%clk 0:01:16.4]}
40... Bd7 {[%clk 0:02:04.5]} 41. Qd4 {[%clk 0:00:19.4]} 41... Qe5 {[%clk
0:01:59.6]} 42. Qxe5 {[%clk 0:00:20.1]} 42... dxe5 {[%clk 0:02:00.8]} 43. Nd3
{[%clk 0:00:17.5]} 43... Rd4 {[%clk 0:01:54.6]} 44. Nc5 {[%clk 0:00:16.7]} 44...
Rc7 {[%clk 0:01:44.2]} 45. Nxd7 {[%clk 0:00:17.6]} 45... Rxd7 {[%clk 0:01:45.4]}
46. Bc3 {[%clk 0:00:09.7]} 46... Rd3 {[%clk 0:01:46.8]} 47. Kh2 {[%clk
0:00:10.5]} 47... f4 {[%clk 0:01:40.2]} 48. Nh1 {[%clk 0:00:11.6]} 48... Re3
{[%clk 0:01:37.4]} 49. Nf2 {[%clk 0:00:12.8]} 49... Re7 {[%clk 0:01:38.4]} 50.
Ng4 {[%clk 0:00:13.2]} 50... Re2 {[%clk 0:01:37.9]} 51. d6 {[%clk 0:00:14.5]}
51... Rb7 {[%clk 0:01:36.2]} 52. Nxe5 {[%clk 0:00:11.2]} 52... Rxe4 {[%clk
0:01:29.2]} 53. d7 {[%clk 0:00:12.1]} 53... Rd4 {[%clk 0:01:27.4]} 54. Bxd4
{[%clk 0:00:12.6]} 1-0

[Event "GrandPrix_30.05"]
[Site "Chess.com"]
[Date "2020.05.30"]
[Round "6"]
[White "Sergey_Krivenko"]
[Black "SacrificeGod"]
[Result "0-1"]
[WhiteElo "2076"]
[BlackElo "2240"]
[TimeControl "600+2"]
[EndTime "10:57:05 PDT"]
[Termination "SacrificeGod won by resignation"]

1. d4 {[%clk 0:10:01.9]} 1... Nf6 {[%clk 0:09:59.5]} 2. Nf3 {[%clk 0:10:02.2]}
2... g6 {[%clk 0:10:00.7]} 3. Bg5 {[%clk 0:10:02.4]} 3... Bg7 {[%clk 0:10:01.8]}
4. Nbd2 {[%clk 0:10:02.2]} 4... h6 {[%clk 0:09:47.6]} 5. Bh4 {[%clk 0:10:00.4]}
5... g5 {[%clk 0:09:45.3]} 6. Bg3 {[%clk 0:10:00.5]} 6... Nh5 {[%clk 0:09:45.9]}
7. Be5 {[%clk 0:09:42.4]} 7... Nf6 {[%clk 0:09:35.2]} 8. c3 {[%clk 0:09:16]}
8... d6 {[%clk 0:09:35.1]} 9. Bg3 {[%clk 0:09:15.8]} 9... Nh5 {[%clk 0:09:35.9]}
10. e4 {[%clk 0:09:15.9]} 10... e6 {[%clk 0:09:33.9]} 11. Nc4 {[%clk 0:08:59.7]}
11... Qe7 {[%clk 0:09:06.6]} 12. Nfd2 {[%clk 0:08:44.7]} 12... Nxg3 {[%clk
0:09:03.8]} 13. hxg3 {[%clk 0:08:46.6]} 13... O-O {[%clk 0:08:40.3]} 14. Ne3
{[%clk 0:08:25.3]} 14... f5 {[%clk 0:08:35.8]} 15. exf5 {[%clk 0:08:04.9]} 15...
exf5 {[%clk 0:08:34.7]} 16. Bc4+ {[%clk 0:06:03.3]} 16... Kh8 {[%clk 0:07:53.9]}
17. Kf1 {[%clk 0:05:50.7]} 17... c6 {[%clk 0:07:51.6]} 18. Qh5 {[%clk
0:05:36.9]} 18... d5 {[%clk 0:07:42.7]} 19. Bd3 {[%clk 0:05:29.4]} 19... Be6
{[%clk 0:05:57.9]} 20. Nf3 {[%clk 0:04:49.8]} 20... Kg8 {[%clk 0:04:48.9]} 21.
Ne5 {[%clk 0:03:46.3]} 21... Nd7 {[%clk 0:04:10.1]} 22. Ng6 {[%clk 0:03:33.1]}
22... Qf6 {[%clk 0:04:09.5]} 23. Nxf8 {[%clk 0:03:25.3]} 23... Rxf8 {[%clk
0:04:10]} 24. Re1 {[%clk 0:03:12.1]} 24... c5 {[%clk 0:03:56.5]} 25. dxc5 {[%clk
0:02:25.3]} 25... Nxc5 {[%clk 0:03:55.8]} 26. Bc2 {[%clk 0:02:25]} 26... Ne4
{[%clk 0:01:53.3]} 27. Kg1 {[%clk 0:01:51.8]} 27... f4 {[%clk 0:00:15.6]} 28.
gxf4 {[%clk 0:01:46.4]} 28... Qxf4 {[%clk 0:00:15]} 29. Qf3 {[%clk 0:00:54.5]}
29... Qd6 {[%clk 0:00:07.3]} 30. Qh5 {[%clk 0:00:29.7]} 30... Nxf2 {[%clk
0:00:07]} 31. Qg6 {[%clk 0:00:27]} 31... Rf6 {[%clk 0:00:07.2]} 32. Qh7+ {[%clk
0:00:23.5]} 32... Kf8 {[%clk 0:00:08.3]} 33. Rh2 {[%clk 0:00:16.8]} 33... Bg8
{[%clk 0:00:09]} 34. Nf5 {[%clk 0:00:13.1]} 34... Qxh2+ {[%clk 0:00:09.9]} 35.
Kxh2 {[%clk 0:00:12.8]} 35... Bxh7 {[%clk 0:00:11]} 36. Nxg7 {[%clk 0:00:13.8]}
36... Bxc2 {[%clk 0:00:10]} 37. Nh5 {[%clk 0:00:13.3]} 37... Rf7 {[%clk
0:00:06.6]} 0-1

[Event "GrandPrix_30.05"]
[Site "Chess.com"]
[Date "2020.05.30"]
[Round "6"]
[White "temus_galaktionov"]
[Black "Bacyanide"]
[Result "0-1"]
[WhiteElo "2560"]
[BlackElo "2509"]
[TimeControl "600+2"]
[EndTime "10:57:14 PDT"]
[Termination "Bacyanide won by resignation"]

1. d4 {[%clk 0:10:01.9]} 1... d5 {[%clk 0:10:00.6]} 2. Nf3 {[%clk 0:10:03.3]}
2... Nf6 {[%clk 0:10:01.1]} 3. c4 {[%clk 0:10:04.9]} 3... e6 {[%clk 0:10:02.2]}
4. Nc3 {[%clk 0:10:05.4]} 4... c5 {[%clk 0:10:03.2]} 5. cxd5 {[%clk 0:10:06]}
5... exd5 {[%clk 0:10:05.1]} 6. Bg5 {[%clk 0:10:07]} 6... Be6 {[%clk 0:10:05.7]}
7. e3 {[%clk 0:10:07.8]} 7... c4 {[%clk 0:10:06.6]} 8. Be2 {[%clk 0:10:03.4]}
8... Bb4 {[%clk 0:10:05.7]} 9. O-O {[%clk 0:10:03.9]} 9... O-O {[%clk 0:09:46]}
10. Ne5 {[%clk 0:09:51.5]} 10... Nc6 {[%clk 0:08:52.7]} 11. f4 {[%clk 0:09:47]}
11... Bxc3 {[%clk 0:08:52.5]} 12. bxc3 {[%clk 0:09:47.2]} 12... Bf5 {[%clk
0:08:53.8]} 13. g4 {[%clk 0:08:36.9]} 13... Be4 {[%clk 0:08:51.1]} 14. Bf3
{[%clk 0:08:37.4]} 14... Bxf3 {[%clk 0:08:15.1]} 15. Qxf3 {[%clk 0:08:39.3]}
15... Re8 {[%clk 0:08:06.9]} 16. Rab1 {[%clk 0:08:26.5]} 16... Rb8 {[%clk
0:07:01.9]} 17. Rb5 {[%clk 0:07:37.4]} 17... Ne7 {[%clk 0:06:51.4]} 18. Rfb1
{[%clk 0:07:31.8]} 18... b6 {[%clk 0:06:46.1]} 19. Qg2 {[%clk 0:06:57.5]} 19...
a6 {[%clk 0:06:41.5]} 20. R5b4 {[%clk 0:06:53]} 20... Qd6 {[%clk 0:06:16.5]} 21.
Bxf6 {[%clk 0:05:29.6]} 21... gxf6 {[%clk 0:06:15]} 22. Nf3 {[%clk 0:05:30.4]}
22... b5 {[%clk 0:05:21.3]} 23. R4b2 {[%clk 0:05:25.8]} 23... Nc6 {[%clk
0:04:57.2]} 24. Nh4 {[%clk 0:04:36.2]} 24... Rxe3 {[%clk 0:04:12.4]} 25. Nf5
{[%clk 0:04:36.3]} 25... Qe6 {[%clk 0:04:03.7]} 26. Nxe3 {[%clk 0:04:25.9]}
26... Qxe3+ {[%clk 0:04:04.5]} 27. Rf2 {[%clk 0:04:11.7]} 27... Qxc3 {[%clk
0:04:01.3]} 28. Qxd5 {[%clk 0:04:11.9]} 28... Nxd4 {[%clk 0:03:55.9]} 29. Rd1
{[%clk 0:04:00.3]} 29... Ne6 {[%clk 0:03:39.2]} 30. Qc6 {[%clk 0:02:53.2]} 30...
Qe3 {[%clk 0:03:10.3]} 31. Kf1 {[%clk 0:02:24.6]} 31... Qb6 {[%clk 0:01:02.6]}
32. Qe4 {[%clk 0:02:16.9]} 32... c3 {[%clk 0:00:57.7]} 33. g5 {[%clk 0:02:07.7]}
33... fxg5 {[%clk 0:00:45.9]} 34. fxg5 {[%clk 0:02:09.6]} 34... Qb7 {[%clk
0:00:33.7]} 35. Rd5 {[%clk 0:01:17.8]} 35... b4 {[%clk 0:00:30.4]} 36. h4 {[%clk
0:01:02.6]} 36... Qa8 {[%clk 0:00:19.9]} 37. Qf5 {[%clk 0:00:51.9]} 37... Rf8
{[%clk 0:00:20.4]} 38. h5 {[%clk 0:00:52.3]} 38... Ng7 {[%clk 0:00:17.3]} 39.
Qe5 {[%clk 0:00:48.6]} 39... Re8 {[%clk 0:00:12.9]} 40. Qf4 {[%clk 0:00:42.9]}
40... Qxd5 {[%clk 0:00:12.9]} 41. Kg1 {[%clk 0:00:39.7]} 41... Nxh5 {[%clk
0:00:13.2]} 42. Qxb4 {[%clk 0:00:31.5]} 42... Re1+ {[%clk 0:00:13.7]} 43. Rf1
{[%clk 0:00:32.4]} 43... Rxf1+ {[%clk 0:00:14]} 44. Kxf1 {[%clk 0:00:34.3]}
44... Qd3+ {[%clk 0:00:14.1]} 45. Kf2 {[%clk 0:00:34.4]} 45... Qd2+ {[%clk
0:00:13.6]} 46. Kf3 {[%clk 0:00:31.5]} 46... Qf4+ {[%clk 0:00:14.7]} 0-1

[Event "GrandPrix_30.05"]
[Site "Chess.com"]
[Date "2020.05.30"]
[Round "6"]
[White "VMikhalevski"]
[Black "moro182"]
[Result "1-0"]
[WhiteElo "2672"]
[BlackElo "2500"]
[TimeControl "600+2"]
[EndTime "10:57:30 PDT"]
[Termination "VMikhalevski won by resignation"]

1. Nf3 {[%clk 0:10:01.9]} 1... d5 {[%clk 0:10:00.7]} 2. g3 {[%clk 0:10:02]} 2...
Nf6 {[%clk 0:10:01.9]} 3. Bg2 {[%clk 0:10:02.6]} 3... c5 {[%clk 0:10:03]} 4. O-O
{[%clk 0:10:01]} 4... Nc6 {[%clk 0:10:03.9]} 5. d4 {[%clk 0:10:02]} 5... e6
{[%clk 0:10:05]} 6. b3 {[%clk 0:10:00]} 6... Be7 {[%clk 0:09:58.5]} 7. Bb2
{[%clk 0:10:00]} 7... O-O {[%clk 0:09:57.7]} 8. Nbd2 {[%clk 0:09:41.1]} 8...
cxd4 {[%clk 0:09:52.5]} 9. Nxd4 {[%clk 0:09:41.5]} 9... Nxd4 {[%clk 0:09:54.4]}
10. Bxd4 {[%clk 0:09:42]} 10... Qc7 {[%clk 0:09:56.3]} 11. Bb2 {[%clk
0:08:59.7]} 11... e5 {[%clk 0:09:47.4]} 12. Nf3 {[%clk 0:08:55.6]} 12... e4
{[%clk 0:09:02.5]} 13. Nd4 {[%clk 0:08:49.3]} 13... Bd7 {[%clk 0:08:54.6]} 14.
a4 {[%clk 0:08:39.3]} 14... Rac8 {[%clk 0:08:44.1]} 15. Qd2 {[%clk 0:08:32.9]}
15... Ng4 {[%clk 0:07:37.6]} 16. f3 {[%clk 0:07:49.1]} 16... exf3 {[%clk
0:06:52.8]} 17. exf3 {[%clk 0:07:47.3]} 17... Nf6 {[%clk 0:06:54]} 18. Rfe1
{[%clk 0:07:42.6]} 18... Bc5 {[%clk 0:06:53.8]} 19. Kh1 {[%clk 0:06:28.5]} 19...
Rfe8 {[%clk 0:06:36.6]} 20. Bf1 {[%clk 0:05:04.9]} 20... a6 {[%clk 0:05:23.1]}
21. Bd3 {[%clk 0:05:03.1]} 21... Qd6 {[%clk 0:05:12.2]} 22. Rxe8+ {[%clk
0:04:21.9]} 22... Rxe8 {[%clk 0:05:14.1]} 23. Re1 {[%clk 0:04:21.4]} 23... Re7
{[%clk 0:04:03.5]} 24. Re2 {[%clk 0:04:02.2]} 24... Bb4 {[%clk 0:03:49.3]} 25.
Qd1 {[%clk 0:03:41.6]} 25... h6 {[%clk 0:03:31.3]} 26. Nf5 {[%clk 0:03:26.6]}
26... Bxf5 {[%clk 0:03:22.6]} 27. Bxf5 {[%clk 0:03:26.8]} 27... Bc5 {[%clk
0:03:05.6]} 28. Kg2 {[%clk 0:03:19.6]} 28... Rxe2+ {[%clk 0:02:49.5]} 29. Qxe2
{[%clk 0:03:17.9]} 29... d4 {[%clk 0:02:51.4]} 30. Bc1 {[%clk 0:02:55.1]} 30...
Qc7 {[%clk 0:02:04.8]} 31. Bf4 {[%clk 0:02:45.3]} 31... Bd6 {[%clk 0:02:01.5]}
32. Bd2 {[%clk 0:02:38.5]} 32... g6 {[%clk 0:01:36.8]} 33. Bd3 {[%clk
0:02:36.5]} 33... Kg7 {[%clk 0:01:33]} 34. Bc4 {[%clk 0:02:34]} 34... Qc5 {[%clk
0:01:27.1]} 35. b4 {[%clk 0:02:09.6]} 35... Qc6 {[%clk 0:01:12.7]} 36. b5 {[%clk
0:01:44.8]} 36... axb5 {[%clk 0:01:09.1]} 37. axb5 {[%clk 0:01:45]} 37... Qc5
{[%clk 0:01:10.8]} 38. c3 {[%clk 0:01:32.6]} 38... Be5 {[%clk 0:00:50.7]} 39. f4
{[%clk 0:01:13.7]} 39... Bd6 {[%clk 0:00:24.5]} 40. Qd3 {[%clk 0:01:12.9]} 40...
Bc7 {[%clk 0:00:13.1]} 41. cxd4 {[%clk 0:01:05.3]} 41... Qe7 {[%clk 0:00:12.4]}
42. Qe3 {[%clk 0:00:59.4]} 42... Qd7 {[%clk 0:00:13.4]} 43. Bc1 {[%clk
0:00:47.9]} 43... Kh7 {[%clk 0:00:10.7]} 44. d5 {[%clk 0:00:40.5]} 44... Ng4
{[%clk 0:00:05.8]} 45. Qd4 {[%clk 0:00:39.1]} 45... Bd8 {[%clk 0:00:06.8]} 46.
d6 {[%clk 0:00:38.3]} 46... Bf6 {[%clk 0:00:06.2]} 47. Qd5 {[%clk 0:00:39.1]}
47... Kg7 {[%clk 0:00:05.1]} 48. h3 {[%clk 0:00:39]} 48... Qe8 {[%clk
0:00:03.8]} 49. hxg4 {[%clk 0:00:38.3]} 1-0

[Event "GrandPrix_30.05"]
[Site "Chess.com"]
[Date "2020.05.30"]
[Round "6"]
[White "RitvarsReimanis"]
[Black "GMStefanova"]
[Result "1-0"]
[WhiteElo "2194"]
[BlackElo "2287"]
[TimeControl "600+2"]
[EndTime "10:57:31 PDT"]
[Termination "RitvarsReimanis won on time"]

1. d4 {[%clk 0:10:01.9]} 1... d5 {[%clk 0:09:59.9]} 2. c4 {[%clk 0:10:03]} 2...
c6 {[%clk 0:10:00.6]} 3. Nf3 {[%clk 0:10:03.6]} 3... Nf6 {[%clk 0:09:59]} 4. e3
{[%clk 0:10:04.1]} 4... Bf5 {[%clk 0:09:53.9]} 5. Nc3 {[%clk 0:10:04.3]} 5... e6
{[%clk 0:09:53.8]} 6. Nh4 {[%clk 0:10:05.3]} 6... Be4 {[%clk 0:09:54.5]} 7. f3
{[%clk 0:10:06.3]} 7... Bg6 {[%clk 0:09:55.5]} 8. Bd2 {[%clk 0:10:06.2]} 8...
Be7 {[%clk 0:09:42.8]} 9. Qb3 {[%clk 0:10:05.2]} 9... Qc7 {[%clk 0:09:32.1]} 10.
Nxg6 {[%clk 0:09:59.4]} 10... hxg6 {[%clk 0:09:32.5]} 11. O-O-O {[%clk
0:10:01.3]} 11... Nbd7 {[%clk 0:09:27.8]} 12. Kb1 {[%clk 0:09:58]} 12... dxc4
{[%clk 0:09:15.6]} 13. Bxc4 {[%clk 0:09:57.5]} 13... b5 {[%clk 0:09:16.1]} 14.
Be2 {[%clk 0:09:55.7]} 14... a5 {[%clk 0:09:16.7]} 15. Qc2 {[%clk 0:09:41.2]}
15... Qb7 {[%clk 0:08:36.4]} 16. e4 {[%clk 0:09:00.7]} 16... Nb6 {[%clk
0:07:47.1]} 17. Bg5 {[%clk 0:07:57.2]} 17... a4 {[%clk 0:07:29.9]} 18. e5 {[%clk
0:07:41.8]} 18... Nfd5 {[%clk 0:07:23]} 19. Bxe7 {[%clk 0:07:14]} 19... Nxc3+
{[%clk 0:07:07.7]} 20. Qxc3 {[%clk 0:07:09.2]} 20... Nd5 {[%clk 0:07:08.3]} 21.
Qc1 {[%clk 0:06:49]} 21... Nxe7 {[%clk 0:07:04.1]} 22. Bd3 {[%clk 0:06:45.9]}
22... a3 {[%clk 0:04:18.5]} 23. b3 {[%clk 0:06:44.4]} 23... Nd5 {[%clk
0:04:18.9]} 24. Be4 {[%clk 0:06:45.1]} 24... b4 {[%clk 0:04:19.8]} 25. Bxd5
{[%clk 0:06:45.5]} 25... cxd5 {[%clk 0:04:20.6]} 26. Qd2 {[%clk 0:06:43.2]}
26... O-O {[%clk 0:04:12.3]} 27. h4 {[%clk 0:06:19.5]} 27... f6 {[%clk 0:03:12]}
28. Rhe1 {[%clk 0:05:38.9]} 28... f5 {[%clk 0:02:56.4]} 29. f4 {[%clk
0:05:09.6]} 29... Rac8 {[%clk 0:02:53.2]} 30. Rc1 {[%clk 0:05:10.6]} 30... Qb5
{[%clk 0:02:35.9]} 31. Rc2 {[%clk 0:04:57.7]} 31... Rxc2 {[%clk 0:02:03.2]} 32.
Qxc2 {[%clk 0:04:59.6]} 32... Qb6 {[%clk 0:02:03.7]} 33. Rd1 {[%clk 0:04:31.3]}
33... Rd8 {[%clk 0:01:57.7]} 34. g4 {[%clk 0:02:44.3]} 34... Kf7 {[%clk
0:01:24.7]} 35. h5 {[%clk 0:02:26.1]} 35... gxh5 {[%clk 0:01:01.1]} 36. gxf5
{[%clk 0:02:24.9]} 36... exf5 {[%clk 0:00:33.5]} 37. Qxf5+ {[%clk 0:02:26.8]}
37... Kg8 {[%clk 0:00:34.3]} 38. e6 {[%clk 0:02:16.4]} 38... Qc7 {[%clk
0:00:31]} 39. Rc1 {[%clk 0:02:12.6]} 39... Qe7 {[%clk 0:00:31.5]} 40. Qe5 {[%clk
0:02:00.5]} 40... h4 {[%clk 0:00:11.5]} 41. Rc7 {[%clk 0:01:08.1]} 41... Qf6
{[%clk 0:00:12.4]} 42. e7 {[%clk 0:01:09.4]} 42... Re8 {[%clk 0:00:06.7]} 43.
Qxd5+ {[%clk 0:01:08.9]} 43... Qf7 {[%clk 0:00:07.8]} 44. Qd7 {[%clk 0:00:18.9]}
44... Qg6+ {[%clk 0:00:05.7]} 45. f5 {[%clk 0:00:20.5]} 45... Qg1+ {[%clk
0:00:06.3]} 46. Rc1 {[%clk 0:00:21.5]} 1-0

[Event "GrandPrix_30.05"]
[Site "Chess.com"]
[Date "2020.05.30"]
[Round "6"]
[White "Olghita64"]
[Black "viktorskliarov"]
[Result "0-1"]
[WhiteElo "2050"]
[BlackElo "2240"]
[TimeControl "600+2"]
[EndTime "10:57:36 PDT"]
[Termination "viktorskliarov won on time"]

1. Nf3 {[%clk 0:10:01.9]} 1... g6 {[%clk 0:09:59.8]} 2. e4 {[%clk 0:09:56]} 2...
c5 {[%clk 0:09:57.3]} 3. d4 {[%clk 0:09:53.6]} 3... cxd4 {[%clk 0:09:58.5]} 4.
Nxd4 {[%clk 0:09:54.2]} 4... Bg7 {[%clk 0:09:58]} 5. c4 {[%clk 0:09:54.1]} 5...
Nc6 {[%clk 0:09:58.9]} 6. Nc2 {[%clk 0:09:54.4]} 6... d6 {[%clk 0:09:56.6]} 7.
Be2 {[%clk 0:09:51.2]} 7... Nh6 {[%clk 0:09:08.7]} 8. O-O {[%clk 0:09:46.8]}
8... O-O {[%clk 0:09:08.6]} 9. Nc3 {[%clk 0:09:39.1]} 9... f5 {[%clk 0:09:08.2]}
10. Rb1 {[%clk 0:09:06.9]} 10... f4 {[%clk 0:08:02.6]} 11. Nd5 {[%clk
0:08:47.1]} 11... Be5 {[%clk 0:07:40.7]} 12. b4 {[%clk 0:07:49.5]} 12... e6
{[%clk 0:05:27.1]} 13. b5 {[%clk 0:07:49.1]} 13... Nb8 {[%clk 0:05:17.4]} 14.
Ndb4 {[%clk 0:07:46.4]} 14... Qh4 {[%clk 0:05:14.8]} 15. f3 {[%clk 0:07:25.5]}
15... Nd7 {[%clk 0:05:02.3]} 16. Nd3 {[%clk 0:07:24]} 16... Nf7 {[%clk
0:04:38.7]} 17. Nxe5 {[%clk 0:07:07.4]} 17... Ndxe5 {[%clk 0:04:39.4]} 18. Qe1
{[%clk 0:06:57.2]} 18... Qxe1 {[%clk 0:04:11.5]} 19. Rxe1 {[%clk 0:06:52]} 19...
g5 {[%clk 0:04:11.9]} 20. Ba3 {[%clk 0:06:33]} 20... b6 {[%clk 0:03:36.5]} 21.
Red1 {[%clk 0:06:21.7]} 21... Rd8 {[%clk 0:03:36.8]} 22. Nd4 {[%clk 0:06:09.7]}
22... Bd7 {[%clk 0:03:32.1]} 23. g3 {[%clk 0:05:03]} 23... Rac8 {[%clk
0:03:14.1]} 24. Rbc1 {[%clk 0:04:54.8]} 24... Kf8 {[%clk 0:03:04.1]} 25. Kf2
{[%clk 0:04:38.8]} 25... Ke7 {[%clk 0:03:01.4]} 26. Rc2 {[%clk 0:04:28.7]} 26...
Rg8 {[%clk 0:02:49]} 27. Bf1 {[%clk 0:04:10.2]} 27... Rc7 {[%clk 0:02:38.1]} 28.
Bb4 {[%clk 0:03:20.6]} 28... Rgc8 {[%clk 0:02:25.7]} 29. Rdc1 {[%clk 0:03:21.3]}
29... Nd8 {[%clk 0:02:26.8]} 30. gxf4 {[%clk 0:02:24]} 30... gxf4 {[%clk
0:02:26.9]} 31. Bd2 {[%clk 0:01:36.2]} 31... Ng6 {[%clk 0:02:25.1]} 32. Ne2
{[%clk 0:01:32.5]} 32... Bxb5 {[%clk 0:01:34]} 33. Nxf4 {[%clk 0:01:33.2]} 33...
Ne5 {[%clk 0:01:32.3]} 34. Nh5 {[%clk 0:01:18.1]} 34... Ndf7 {[%clk 0:01:01.4]}
35. Bb4 {[%clk 0:00:56.8]} 35... Nxc4 {[%clk 0:00:48.2]} 36. a4 {[%clk
0:00:52.1]} 36... Ba6 {[%clk 0:00:44.4]} 37. f4 {[%clk 0:00:41.7]} 37... b5
{[%clk 0:00:18.8]} 38. axb5 {[%clk 0:00:34.9]} 38... Bxb5 {[%clk 0:00:19.6]} 39.
e5 {[%clk 0:00:33.6]} 39... Rc6 {[%clk 0:00:12.6]} 40. exd6+ {[%clk 0:00:07.7]}
40... Nfxd6 {[%clk 0:00:12.9]} 41. Ng3 {[%clk 0:00:03.3]} 41... a5 {[%clk
0:00:12.8]} 42. Bc3 {[%clk 0:00:02.4]} 42... a4 {[%clk 0:00:08.6]} 43. Bb4
{[%clk 0:00:02.8]} 43... Nb6 {[%clk 0:00:07.5]} 0-1

[Event "GrandPrix_30.05"]
[Site "Chess.com"]
[Date "2020.05.30"]
[Round "6"]
[White "Igrok3069"]
[Black "Lavrov_Maxim"]
[Result "1-0"]
[WhiteElo "2561"]
[BlackElo "2280"]
[TimeControl "600+2"]
[EndTime "10:57:42 PDT"]
[Termination "Igrok3069 won by resignation"]

1. d4 {[%clk 0:10:01.9]} 1... Nf6 {[%clk 0:10:00.1]} 2. Nf3 {[%clk 0:10:01.4]}
2... g6 {[%clk 0:09:59.6]} 3. g3 {[%clk 0:10:02.3]} 3... Bg7 {[%clk 0:10:00.7]}
4. Bg2 {[%clk 0:10:03.9]} 4... O-O {[%clk 0:10:01.5]} 5. O-O {[%clk 0:10:05.1]}
5... d6 {[%clk 0:10:02.6]} 6. b3 {[%clk 0:10:06]} 6... a5 {[%clk 0:10:01.4]} 7.
c4 {[%clk 0:10:02.8]} 7... c6 {[%clk 0:10:01]} 8. Nc3 {[%clk 0:10:02.3]} 8...
Na6 {[%clk 0:09:52.4]} 9. e4 {[%clk 0:09:24.3]} 9... Bg4 {[%clk 0:09:19.2]} 10.
Bb2 {[%clk 0:09:24.4]} 10... Nd7 {[%clk 0:09:14]} 11. Qd2 {[%clk 0:08:53.3]}
11... e5 {[%clk 0:08:52.9]} 12. d5 {[%clk 0:08:47.6]} 12... cxd5 {[%clk
0:08:29.2]} 13. Nxd5 {[%clk 0:08:39.7]} 13... Nac5 {[%clk 0:08:22.1]} 14. Rfe1
{[%clk 0:08:35.6]} 14... Ne6 {[%clk 0:07:42.5]} 15. Ne3 {[%clk 0:07:30.8]} 15...
Bxf3 {[%clk 0:07:38.5]} 16. Bxf3 {[%clk 0:07:31.8]} 16... Nd4 {[%clk 0:07:39.6]}
17. Bg2 {[%clk 0:07:08]} 17... Nc5 {[%clk 0:07:28.6]} 18. Rad1 {[%clk
0:06:42.8]} 18... Nce6 {[%clk 0:07:17.7]} 19. Nd5 {[%clk 0:06:30.2]} 19... Nc7
{[%clk 0:06:59.3]} 20. Nc3 {[%clk 0:05:33.3]} 20... Nce6 {[%clk 0:06:51.2]} 21.
h4 {[%clk 0:05:13.9]} 21... h5 {[%clk 0:05:20.6]} 22. Nd5 {[%clk 0:04:44.6]}
22... Nc7 {[%clk 0:05:04.5]} 23. Nb6 {[%clk 0:04:44.8]} 23... Ra6 {[%clk
0:05:01.1]} 24. Na4 {[%clk 0:04:45.8]} 24... b5 {[%clk 0:04:49.5]} 25. Bxd4
{[%clk 0:04:09.9]} 25... bxa4 {[%clk 0:04:24.5]} 26. Bc5 {[%clk 0:04:09.8]}
26... axb3 {[%clk 0:04:04.7]} 27. axb3 {[%clk 0:04:03.5]} 27... Ne8 {[%clk
0:03:46.1]} 28. Ba3 {[%clk 0:03:50.3]} 28... Qb8 {[%clk 0:03:30.3]} 29. c5
{[%clk 0:03:43.7]} 29... Qxb3 {[%clk 0:03:10.7]} 30. Re3 {[%clk 0:02:28.9]}
30... Qe6 {[%clk 0:02:40.1]} 31. cxd6 {[%clk 0:02:21.7]} 31... Nf6 {[%clk
0:02:32.6]} 32. Rd3 {[%clk 0:02:10.3]} 32... Rd8 {[%clk 0:02:27.2]} 33. f3
{[%clk 0:02:06.8]} 33... Bf8 {[%clk 0:02:18.3]} 34. Kh2 {[%clk 0:02:00.8]} 34...
Qc4 {[%clk 0:01:12.5]} 35. Rc1 {[%clk 0:01:32.1]} 35... Qa4 {[%clk 0:00:59.6]}
36. Bh3 {[%clk 0:01:09]} 36... Rb6 {[%clk 0:00:51.8]} 37. Rd1 {[%clk 0:01:01.4]}
37... Rb3 {[%clk 0:00:48]} 38. Rxb3 {[%clk 0:00:35.5]} 38... Qxb3 {[%clk
0:00:48.2]} 39. Qd3 {[%clk 0:00:36.1]} 39... Qxd3 {[%clk 0:00:31.5]} 40. Rxd3
{[%clk 0:00:37]} 40... Ne8 {[%clk 0:00:15.1]} 41. d7 {[%clk 0:00:36.5]} 41...
Nc7 {[%clk 0:00:13.2]} 42. Bb2 {[%clk 0:00:33.1]} 42... f6 {[%clk 0:00:09.7]}
43. Rc3 {[%clk 0:00:34.2]} 43... Nb5 {[%clk 0:00:09.5]} 44. Rc8 {[%clk
0:00:32.5]} 44... Be7 {[%clk 0:00:10.4]} 45. Be6+ {[%clk 0:00:25.9]} 45... Kg7
{[%clk 0:00:10.8]} 46. f4 {[%clk 0:00:26.1]} 46... exf4 {[%clk 0:00:09.2]} 47.
gxf4 {[%clk 0:00:26.8]} 47... Nd6 {[%clk 0:00:10.4]} 48. e5 {[%clk 0:00:25]}
48... fxe5 {[%clk 0:00:07.1]} 49. Bxe5+ {[%clk 0:00:25.1]} 1-0